lending/lending_fUSD_20240112
["ID","MTS","AMOUNT","RATE_DAILY","PERIOD"]
[311390490,1705074653689,-500.0,0.00022791,2]
[311390491,1705074653698,-500.0,0.00022791,2]
[311390492,1705074653707,-500.0,0.00022791,2]
[311390493,1705074653716,-500.0,0.00022791,2]
[311390494,1705074653726,-500.0,0.00022791,2]
[311390495,1705074653735,-500.0,0.00022791,2]
[311390496,1705074653746,-500.0,0.00022791,2]
[311390497,1705074653756,-500.0,0.00022791,2]
[311390498,1705074653765,-500.0,0.00022791,2]
[311390499,1705074653775,-500.0,0.00022791,2]
[311390500,1705074653784,-500.0,0.00022791,2]
[311390501,1705074653795,-500.0,0.00022791,2]
[311390502,1705074653804,-500.0,0.00022791,2]
[311390503,1705074653814,-500.0,0.00022791,2]
[311390504,1705074653825,-500.0,0.00022791,2]
[311390505,1705074653835,-500.0,0.00022791,2]
[311390506,1705074653846,-500.0,0.00022791,2]
[311390507,1705074653856,-500.0,0.00022791,2]
[311390508,1705074653867,-500.0,0.00022791,2]
[311390509,1705074653877,-500.0,0.00022791,2]
[311390510,1705074654111,-500.0,0.00022791,2]
[311390511,1705074654121,-500.0,0.00022791,2]
[311390512,1705074654131,-500.0,0.00022791,2]
[311390513,1705074654141,-500.0,0.00022791,2]
[311390514,1705074654150,-500.0,0.00022791,2]
[311390515,1705074654159,-373.08532921,0.00022791,2]
[311390516,1705074654169,-350.35303602,0.00022791,2]
[311390517,1705074654180,-500.0,0.00022791,2]
[311390518,1705074654189,-500.0,0.00022791,2]
[311390519,1705074654198,-500.0,0.00022791,2]
[311390520,1705074654208,-500.0,0.00022791,2]
[311390521,1705074654217,-500.0,0.00022791,2]
[311390522,1705074654227,-500.0,0.00022791,2]
[311390523,1705074654237,-500.0,0.00022791,2]
[311390524,1705074654251,-500.0,0.00022791,2]
[311390525,1705074654261,-500.0,0.00022791,2]
[311390526,1705074654271,-500.0,0.00022791,2]
[311390527,1705074654281,-500.0,0.00022791,2]
[311390528,1705074654290,-500.0,0.00022791,2]
[311390529,1705074654300,-250.0,0.00022791,2]
[311390530,1705074654310,-500.0,0.00022791,2]
[311390531,1705074654320,-500.0,0.00022791,2]
[311390532,1705074654329,-500.0,0.00022791,2]
[311390533,1705074654340,-500.0,0.00022791,2]
[311390534,1705074654349,-500.0,0.00022791,2]
[311390535,1705074654359,-500.0,0.00022791,2]
[311390536,1705074654368,-500.0,0.00022791,2]
[311390537,1705074654378,-500.0,0.00022791,2]
[311390538,1705074654387,-500.0,0.00022791,2]
[311390539,1705074654396,-500.0,0.00022791,2]
[311390540,1705074654405,-500.0,0.00022791,2]
[311390541,1705074654415,-500.0,0.00022791,2]
[311390542,1705074654425,-500.0,0.00022791,2]
[311390543,1705074654434,-500.0,0.00022791,2]
[311390544,1705074654443,-500.0,0.00022791,2]
[311390545,1705074654452,-500.0,0.00022791,2]
[311390546,1705074654461,-500.0,0.00022791,2]
[311390547,1705074654470,-500.0,0.00022791,2]
[311390548,1705074654479,-500.0,0.00022791,2]
[311390549,1705074654490,-500.0,0.00022791,2]
[311390550,1705074654502,-1000.0,0.00022791,2]
[311390551,1705074654512,-500.0,0.00022791,2]
[311390552,1705074654522,-500.0,0.00022791,2]
[311390553,1705074654531,-500.0,0.00022791,2]
[311390554,1705074654541,-500.0,0.00022791,2]
[311390555,1705074654551,-500.0,0.00022791,2]
[311390556,1705074654560,-161.72,0.00022791,2]
[311390557,1705074654570,-500.0,0.00022791,2]
[311390558,1705074654579,-500.0,0.00022791,2]
[311390559,1705074654589,-500.0,0.00022791,2]
[311390560,1705074654598,-500.0,0.00022791,2]
[311390561,1705074654608,-500.0,0.00022791,2]
[311390562,1705074654618,-202.78123974,0.00022791,2]
[311390563,1705074654627,-500.0,0.00022791,2]
[311390564,1705074654636,-500.0,0.00022791,2]
[311390565,1705074654646,-500.0,0.00022791,2]
[311390566,1705074654655,-500.0,0.00022791,2]
[311390567,1705074654664,-500.0,0.00022791,2]
[311390568,1705074654674,-921.13,0.00022791,2]
[311390569,1705074654683,-500.0,0.00022791,2]
[311390570,1705074654692,-500.0,0.00022791,2]
[311390571,1705074654701,-500.0,0.00022791,2]
[311390572,1705074654711,-500.0,0.00022791,2]
[311390573,1705074654720,-641.08,0.00022791,2]
[311390574,1705074654730,-500.0,0.00022791,2]
[311390575,1705074654742,-500.0,0.00022791,2]
[311390576,1705074654751,-500.0,0.00022791,2]
[311390577,1705074654761,-500.0,0.00022791,2]
[311390578,1705074654771,-500.0,0.00022791,2]
[311390579,1705074654781,-500.0,0.00022791,2]
[311390580,1705074654790,-500.0,0.00022791,2]
[311390581,1705074654800,-500.0,0.00022791,2]
[311390582,1705074654810,-500.0,0.00022791,2]
[311390583,1705074654820,-500.0,0.00022791,2]
[311390584,1705074654829,-500.0,0.00022791,2]
[311390585,1705074654839,-500.0,0.00022791,2]
[311390586,1705074654849,-500.0,0.00022791,2]
[311390587,1705074654859,-500.0,0.00022791,2]
[311390588,1705074654869,-604.41,0.00022791,2]
[311390589,1705074654878,-500.0,0.00022791,2]
[311390590,1705074654888,-500.0,0.00022791,2]
[311390591,1705074654897,-500.0,0.00022791,2]
[311390592,1705074654906,-500.0,0.00022791,2]
[311390593,1705074654916,-500.0,0.00022791,2]
[311390594,1705074654925,-500.0,0.00022791,2]
[311390595,1705074654934,-500.0,0.00022791,2]
[311390596,1705074654945,-500.0,0.00022791,2]
[311390597,1705074654954,-500.0,0.00022791,2]
[311390598,1705074654963,-500.0,0.00022791,2]
[311390599,1705074654973,-500.0,0.00022791,2]
[311390600,1705074654982,-500.0,0.00022791,2]
[311390601,1705074654993,-500.0,0.00022791,2]
[311390602,1705074655002,-500.0,0.00022791,2]
[311390603,1705074655012,-500.0,0.00022791,2]
[311390604,1705074655022,-500.0,0.00022791,2]
[311390605,1705074655031,-500.0,0.00022791,2]
[311390606,1705074655041,-500.0,0.00022791,2]
[311390607,1705074655050,-500.0,0.00022791,2]
[311390608,1705074655060,-500.0,0.00022791,2]
[311390609,1705074655069,-500.0,0.00022791,2]
[311390610,1705074655079,-500.0,0.00022791,2]
[311390611,1705074655088,-500.0,0.00022791,2]
[311390612,1705074655098,-500.0,0.00022791,2]
[311390613,1705074655108,-500.0,0.00022791,2]
[311390614,1705074655117,-500.0,0.00022791,2]
[311390615,1705074655127,-500.0,0.00022791,2]
[311390616,1705074655136,-500.0,0.00022791,2]
[311390617,1705074655147,-500.0,0.00022791,2]
[311390618,1705074655158,-500.0,0.00022791,2]
[311390619,1705074655167,-500.0,0.00022791,2]
[311390620,1705074655177,-500.0,0.00022791,2]
[311390621,1705074655188,-500.0,0.00022791,2]
[311390622,1705074655197,-500.0,0.00022791,2]
[311390623,1705074655207,-268.7117121,0.00022791,2]
[311390624,1705074655217,-500.0,0.00022791,2]
[311390625,1705074655226,-500.0,0.00022791,2]
[311390626,1705074655236,-500.0,0.00022791,2]
[311390627,1705074655250,-500.0,0.00022791,2]
[311390628,1705074655259,-500.0,0.00022791,2]
[311390629,1705074655269,-500.0,0.00022791,2]
[311390630,1705074655278,-500.0,0.00022791,2]
[311390631,1705074655287,-500.0,0.00022791,2]
[311390632,1705074655298,-500.0,0.00022791,2]
[311390633,1705074655307,-500.0,0.00022791,2]
[311390634,1705074655316,-500.0,0.00022791,2]
[311390635,1705074655325,-500.0,0.00022791,2]
[311390636,1705074655334,-500.0,0.00022791,2]
[311390637,1705074655344,-500.0,0.00022791,2]
[311390638,1705074655353,-500.0,0.00022791,2]
[311390639,1705074655363,-500.0,0.00022791,2]
[311390640,1705074655372,-500.0,0.00022791,2]
[311390641,1705074655382,-500.0,0.00022791,2]
[311390642,1705074655391,-500.0,0.00022791,2]
[311390643,1705074655400,-344.02394729,0.00022791,2]
[311390644,1705074655409,-500.0,0.00022791,2]
[311390645,1705074655419,-500.0,0.00022791,2]
[311390646,1705074655430,-500.0,0.00022791,2]
[311390647,1705074655439,-500.0,0.00022791,2]
[311390648,1705074655448,-500.0,0.00022791,2]
[311390649,1705074655458,-500.0,0.00022791,2]
[311390650,1705074655467,-500.0,0.00022791,2]
[311390651,1705074655476,-500.0,0.00022791,2]
[311390652,1705074655486,-500.0,0.00022791,2]
[311390653,1705074655497,-500.0,0.00022791,2]
[311390654,1705074655506,-500.0,0.00022791,2]
[311390655,1705074655516,-500.0,0.00022791,2]
[311390656,1705074655525,-500.0,0.00022791,2]
[311390657,1705074655534,-500.0,0.00022791,2]
[311390658,1705074655543,-500.0,0.00022791,2]
[311390659,1705074655552,-500.0,0.00022791,2]
[311390660,1705074655562,-500.0,0.00022791,2]
[311390661,1705074655571,-500.0,0.00022791,2]
[311390662,1705074655581,-500.0,0.00022791,2]
[311390663,1705074655589,-500.0,0.00022791,2]
[311390664,1705074655598,-500.0,0.00022791,2]
[311390665,1705074655607,-500.0,0.00022791,2]
[311390666,1705074655617,-500.0,0.00022791,2]
[311390667,1705074655627,-500.0,0.00022791,2]
[311390668,1705074655636,-500.0,0.00022791,2]
[311390669,1705074655646,-500.0,0.00022791,2]
[311390670,1705074655655,-500.0,0.00022791,2]
[311390671,1705074655665,-500.0,0.00022791,2]
[311390672,1705074655675,-500.0,0.00022791,2]
[311390673,1705074655685,-500.0,0.00022791,2]
[311390674,1705074655694,-500.0,0.00022791,2]
[311390675,1705074655703,-500.0,0.00022791,2]
[311390676,1705074655712,-500.0,0.00022791,2]
[311390677,1705074655722,-500.0,0.00022791,2]
[311390678,1705074655732,-500.0,0.00022791,2]
[311390679,1705074655743,-500.0,0.00022791,2]
[311390680,1705074655753,-500.0,0.00022791,2]
[311390681,1705074655763,-500.0,0.00022791,2]
[311390682,1705074655773,-500.0,0.00022791,2]
[311390683,1705074655783,-500.0,0.00022791,2]
[311390684,1705074655792,-500.0,0.00022791,2]
[311390685,1705074655802,-500.0,0.00022791,2]
[311390686,1705074655811,-500.0,0.00022791,2]
[311390687,1705074655821,-243.05443124,0.00022791,2]
[311390688,1705074655831,-500.0,0.00022791,2]
[311390689,1705074655840,-500.0,0.00022791,2]
[311390690,1705074655849,-500.0,0.00022791,2]
[311390691,1705074655859,-500.0,0.00022791,2]
[311390692,1705074655868,-500.0,0.00022791,2]
[311390693,1705074655878,-500.0,0.00022791,2]
[311390694,1705074655887,-500.0,0.00022791,2]
[311390695,1705074655897,-500.0,0.00022791,2]
[311390696,1705074655906,-500.0,0.00022791,2]
[311390697,1705074655916,-500.0,0.00022791,2]
[311390698,1705074655925,-500.0,0.00022791,2]
[311390699,1705074655935,-500.0,0.00022791,2]
[311390700,1705074655945,-500.0,0.00022791,2]
[311390701,1705074655954,-500.0,0.00022791,2]
[311390702,1705074655964,-500.0,0.00022791,2]
[311390703,1705074655973,-500.0,0.00022791,2]
[311390704,1705074655982,-500.0,0.00022791,2]
[311390705,1705074655993,-500.0,0.00022791,2]
[311390706,1705074656003,-500.0,0.00022791,2]
[311390707,1705074656012,-500.0,0.00022791,2]
[311390709,1705074656022,-500.0,0.00022791,2]
[311390710,1705074656031,-500.0,0.00022791,2]
[311390711,1705074656041,-500.0,0.00022791,2]
[311390712,1705074656051,-500.0,0.00022791,2]
[311390713,1705074656061,-230.36040331,0.00022791,2]
[311390714,1705074656070,-511.7,0.00022791,2]
[311390715,1705074656080,-500.0,0.00022791,2]
[311390716,1705074656091,-500.0,0.00022791,2]
[311390717,1705074656100,-500.0,0.00022791,2]
[311390718,1705074656110,-500.0,0.00022791,2]
[311390719,1705074656120,-500.0,0.00022791,2]
[311390720,1705074656130,-500.0,0.00022791,2]
[311390721,1705074656140,-500.0,0.00022791,2]
[311390722,1705074656149,-500.0,0.00022791,2]
[311390723,1705074656159,-500.0,0.00022791,2]
[311390724,1705074656169,-500.0,0.00022791,2]
[311390725,1705074656179,-500.0,0.00022791,2]
[311390726,1705074656188,-500.0,0.00022791,2]
[311390727,1705074656198,-500.0,0.00022791,2]
[311390728,1705074656208,-507.2489981,0.00022791,2]
[311390729,1705074656217,-500.0,0.00022791,2]
[311390730,1705074656227,-500.0,0.00022791,2]
[311390731,1705074656236,-500.0,0.00022791,2]
[311390732,1705074656249,-500.0,0.00022791,2]
[311390733,1705074656258,-500.0,0.00022791,2]
[311390734,1705074656268,-500.0,0.00022791,2]
[311390735,1705074656277,-500.0,0.00022791,2]
[311390736,1705074656286,-500.0,0.00022791,2]
[311390737,1705074656296,-500.0,0.00022791,2]
[311390738,1705074656307,-500.0,0.00022791,2]
[311390739,1705074656317,-500.0,0.00022791,2]
[311390740,1705074656327,-500.0,0.00022791,2]
[311390741,1705074656337,-500.0,0.00022791,2]
[311390742,1705074656346,-500.0,0.00022791,2]
[311390743,1705074656357,-500.0,0.00022791,2]
[311390744,1705074656366,-500.0,0.00022791,2]
[311390745,1705074656375,-500.0,0.00022791,2]
[311390746,1705074656384,-500.0,0.00022791,2]
[311390747,1705074656394,-500.0,0.00022791,2]
[311390748,1705074656403,-500.0,0.00022791,2]
[311390749,1705074656413,-500.0,0.00022791,2]
[311390750,1705074656422,-500.0,0.00022791,2]
[311390751,1705074656431,-500.0,0.00022791,2]
[311390752,1705074656441,-500.0,0.00022791,2]
[311390753,1705074656450,-500.0,0.00022791,2]
[311390754,1705074656459,-1157.46,0.00022791,2]
[311390755,1705074656469,-500.0,0.00022791,2]
[311390756,1705074656479,-500.0,0.00022791,2]
[311390757,1705074656488,-500.0,0.00022791,2]
[311390758,1705074656500,-500.0,0.00022791,2]
[311390759,1705074656509,-500.0,0.00022791,2]
[311390760,1705074656518,-500.0,0.00022791,2]
[311390761,1705074656529,-500.0,0.00022791,2]
[311390762,1705074656538,-500.0,0.00022791,2]
[311390763,1705074656548,-500.0,0.00022791,2]
[311390764,1705074656557,-500.0,0.00022791,2]
[311390765,1705074656566,-500.0,0.00022791,2]
[311390766,1705074656575,-500.0,0.00022791,2]
[311390767,1705074656585,-500.0,0.00022791,2]
[311390768,1705074656594,-500.0,0.00022791,2]
[311390769,1705074656604,-500.0,0.00022791,2]
[311390770,1705074656613,-500.0,0.00022791,2]
[311390771,1705074656622,-500.0,0.00022791,2]
[311390772,1705074656631,-500.0,0.00022791,2]
[311390773,1705074656641,-500.0,0.00022791,2]
[311390774,1705074656651,-500.0,0.00022791,2]
[311390775,1705074656660,-500.0,0.00022791,2]
[311390776,1705074656669,-500.0,0.00022791,2]
[311390777,1705074656679,-500.0,0.00022791,2]
[311390778,1705074656688,-500.0,0.00022791,2]
[311390779,1705074656697,-500.0,0.00022791,2]
[311390780,1705074656706,-500.0,0.00022791,2]
[311390781,1705074656716,-214.91665787,0.00022792,2]
[311390782,1705074656726,-500.0,0.00022792,2]
[311390783,1705074656736,-500.0,0.00022792,2]
[311390784,1705074656747,-500.0,0.00022792,2]
[311390785,1705074656757,-500.0,0.00022792,2]
[311390786,1705074656766,-500.0,0.00022792,2]
[311390787,1705074656776,-500.0,0.00022792,2]
[311390788,1705074656786,-500.0,0.00022792,2]
[311390789,1705074656796,-500.0,0.00022792,2]
[311390790,1705074656806,-500.0,0.00022792,2]
[311390791,1705074656815,-500.0,0.00022792,2]
[311390792,1705074656825,-500.0,0.00022792,2]
[311390793,1705074656835,-500.0,0.00022792,2]
[311390794,1705074656844,-839.45,0.00022792,2]
[311390795,1705074656854,-316.86278607,0.00022793,2]
[311390796,1705074656864,-1427.40182184,0.00022793,2]
[311390797,1705074656874,-1438.26,0.00022793,2]
[311390798,1705074656884,-158.60896714,0.00022793,2]
[311390799,1705074656893,-765.44000077,0.00022793,2]
[311390800,1705074656902,-2136.08960768,0.00022793,2]
[311390801,1705074656912,-164.65516803,0.00022793,2]
[311390802,1705074656922,-207.56937403,0.00022794,2]
[311390803,1705074656931,-3001.53867376,0.00022794,2]
[311390804,1705074656941,-500.0,0.00022794,2]
[311390805,1705074656950,-155.0,0.00022794,2]
[311390806,1705074656960,-171.68625232,0.00022794,2]
[311390807,1705074656969,-532.26466838,0.00022794,2]
[311390808,1705074656979,-155.0,0.00022794,2]
[311390809,1705074656989,-1707.23061659,0.00022794,2]
[311390810,1705074657000,-1887.26460822,0.00022794,2]
[311390811,1705074657010,-500.0,0.00022794,2]
[311390812,1705074657021,-500.0,0.00022794,2]
[311390813,1705074657031,-746.98,0.00022794,2]
[311390814,1705074657042,-1089.62605832,0.00022795,2]
[311390815,1705074657054,-417.6160908,0.00022795,2]
[311390816,1705074657065,-3735.08240591,0.00022795,2]
[311390817,1705074657075,-523.20663738,0.00022795,2]
[311390818,1705074657086,-383.21919555,0.00022795,2]
[311390819,1705074657255,-10513.08241403,0.00022795,2]
[311390820,1705074657266,-158.20515269,0.00022795,2]
[311390821,1705074657276,-232.92375042,0.00022795,2]
[311390822,1705074657286,-500.0,0.00022795,2]
[311390823,1705074657295,-500.0,0.00022796,2]
[311390824,1705074657306,-315.81002878,0.00022796,2]
[311390825,1705074657315,-500.0,0.00022796,2]
[311390826,1705074657325,-500.0,0.00022796,2]
[311390827,1705074657335,-500.0,0.00022796,2]
[311390828,1705074657345,-500.0,0.00022796,2]
[311390829,1705074657355,-500.0,0.00022796,2]
[311390830,1705074657364,-500.0,0.00022796,2]
[311390831,1705074657373,-500.0,0.00022796,2]
[311390832,1705074657382,-500.0,0.00022796,2]
[311390833,1705074657392,-500.0,0.00022796,2]
[311390834,1705074657401,-500.0,0.00022796,2]
[311390835,1705074657411,-500.0,0.00022796,2]
[311390836,1705074657421,-500.0,0.00022796,2]
[311390837,1705074657430,-384.85735028,0.00022796,2]
[311390838,1705074657440,-500.0,0.00022796,2]
[311390839,1705074657449,-500.0,0.00022796,2]
[311390840,1705074657458,-500.0,0.00022796,2]
[311390841,1705074657466,-500.0,0.00022796,2]
[311390842,1705074657475,-500.0,0.00022796,2]
[311390843,1705074657484,-500.0,0.00022796,2]
[311390844,1705074657494,-500.0,0.00022796,2]
[311390845,1705074657505,-500.0,0.00022796,2]
[311390846,1705074657514,-500.0,0.00022796,2]
[311390847,1705074657523,-500.0,0.00022796,2]
[311390848,1705074657533,-500.0,0.00022796,2]
[311390849,1705074657543,-500.0,0.00022796,2]
[311390850,1705074657553,-500.0,0.00022796,2]
[311390851,1705074657563,-500.0,0.00022796,2]
[311390852,1705074657573,-500.0,0.00022796,2]
[311390853,1705074657582,-505.85361717,0.00022796,2]
[311390854,1705074657592,-500.0,0.00022796,2]
[311390855,1705074657601,-500.0,0.00022796,2]
[311390856,1705074657610,-500.0,0.00022796,2]
[311390857,1705074657620,-500.0,0.00022796,2]
[311390858,1705074657629,-500.0,0.00022796,2]
[311390859,1705074657638,-500.0,0.00022796,2]
[311390860,1705074657647,-500.0,0.00022796,2]
[311390861,1705074657656,-500.0,0.00022796,2]
[311390862,1705074657666,-5000.0,0.00022799,2]
[311390863,1705074657675,-2189.76450094,0.00022799,2]
[311390864,1705074657684,-210.50643798,0.00022799,2]
[311390865,1705074657693,-8401.43825478,0.00022799,2]
[311390866,1705074657702,-1775.85638992,0.00022799,2]
[311390867,1705074657712,-155.0,0.000228,2]
[311390868,1705074657721,-129206.37916907,0.000228,2]
[311390869,1705074657730,-43871.7,0.000228,2]
[311390870,1705074657739,-1500.0,0.000228,2]
[311390871,1705074657751,-1500.0,0.000228,2]
[311390872,1705074657761,-1500.0,0.000228,2]
[311390873,1705074657770,-1409.53,0.000228,2]
[311390874,1705074657779,-17720.53,0.000228,2]
[311390875,1705074657789,-936.22640243,0.00022831,2]
[311390876,1705074657798,-156.6138187,0.00022833,2]
[311390877,1705074657807,-157.53,0.00022842,2]
[311390878,1705074657816,-2189.76450092,0.0002285,2]
[311390879,1705074657826,-571.5597639,0.0002285,2]
[311390880,1705074657835,-8401.43825477,0.0002285,2]
[311390881,1705074657845,-1775.8563899,0.0002285,2]
[311390882,1705074657854,-150.0,0.00022861,2]
[311390883,1705074657863,-1404.97516948,0.00022897,2]
[311390884,1705074657873,-746.98,0.00022898,2]
[311390885,1705074657882,-746.98,0.00022898,2]
[311390886,1705074657891,-746.98,0.00022898,2]
[311390887,1705074657901,-911242.70113668,0.00022899,2]
[311390888,1705074657910,-512715.82464027,0.00022899,2]
[311390889,1705074657920,-42216.54403568,0.000229,2]
[311390890,1705074657929,-250.0,0.000229,2]
[311390891,1705074657939,-12153.87317382,0.000229,2]
[311390892,1705074657948,-10030.35575724,0.000229,2]
[311390893,1705074657957,-936.22640243,0.000229,2]
[311390894,1705074657966,-58000.0,0.000229,2]
[311390895,1705074657976,-156.6138187,0.000229,2]
[311390896,1705074657986,-2189.76450092,0.000229,2]
[311390897,1705074657996,-571.5597639,0.000229,2]
[311390898,1705074658005,-8401.43825477,0.000229,2]
[311390899,1705074658015,-1775.8563899,0.000229,2]
[311390900,1705074658024,-2412.82299174,0.000229,2]
[311390901,1705074658034,-150.0,0.00022908,2]
[311390902,1705074658043,-151.82,0.00022924,2]
[311390903,1705074658053,-150.0,0.00022931,2]
[311390904,1705074658062,-1500.0,0.00022933,2]
[311390905,1705074658072,-150.0,0.00022934,2]
[311390906,1705074658082,-150.0,0.00022941,2]
[311390907,1705074658091,-154.1,0.00022946,2]
[311390908,1705074658100,-150.0,0.00022965,2]
[311390909,1705074658109,-150.0,0.0002297,2]
[311390910,1705074658119,-150.0,0.00022972,2]
[311390911,1705074658128,-150.0,0.00022972,2]
[311390912,1705074658137,-1500.0,0.00022986,2]
[311390913,1705074658149,-150.0,0.00022988,2]
[311390914,1705074658159,-150.0,0.0002299,2]
[311390915,1705074658168,-1500.0,0.00022991,2]
[311390916,1705074658177,-164.3627,0.00022998,2]
[311390917,1705074658187,-528.68959497,0.00022998,2]
[311390918,1705074658196,-217.71520853,0.00022998,2]
[311390919,1705074658206,-714.16959101,0.00022998,2]
[311390920,1705074658215,-275.75008707,0.00022998,2]
[311390921,1705074658225,-5435.05374584,0.00022998,2]
[311390922,1705074658235,-213.86181292,0.00022998,2]
[311390923,1705074658246,-1656.42293049,0.00022998,2]
[311390924,1705074658256,-3855.00674069,0.00022998,2]
[311390925,1705074658265,-500.0,0.00022998,2]
[311390926,1705074658274,-694.71140313,0.00022999,2]
[311390927,1705074658284,-33719.15430606,0.00022999,2]
[311390928,1705074658293,-217.90339848,0.00022999,2]
[311390929,1705074658303,-1260.68225345,0.00022999,2]
[311390930,1705074658314,-1962.34135984,0.00022999,2]
[311390931,1705074658326,-472.16750413,0.00022999,2]
[311390932,1705074658335,-414.26172161,0.00022999,2]
[311390933,1705074658344,-746.98,0.00022999,2]
[311390934,1705074658354,-746.98,0.00022999,2]
[311390935,1705074658365,-746.98,0.00022999,2]
[311390936,1705074658374,-746.98,0.00022999,2]
[311390937,1705074658384,-746.98,0.00022999,2]
[311390938,1705074658393,-746.98,0.00022999,2]
[311390939,1705074658403,-746.98,0.00022999,2]
[311390940,1705074658412,-746.98,0.00022999,2]
[311390941,1705074658422,-746.98,0.00022999,2]
[311390942,1705074658432,-746.98,0.00022999,2]
[311390943,1705074658441,-746.98,0.00022999,2]
[311390944,1705074658451,-746.98,0.00022999,2]
[311390945,1705074658461,-746.98,0.00022999,2]
[311390946,1705074658470,-746.98,0.00022999,2]
[311390947,1705074658479,-746.98,0.00022999,2]
[311390948,1705074658488,-746.98,0.00022999,2]
[311390949,1705074658498,-747.08045637,0.00022999,2]
[311390950,1705074658507,-150.0,0.00022999,2]
[311390951,1705074658516,-150.0,0.00022999,2]
[311390952,1705074658531,-150.0,0.00022999,2]
[311390953,1705074658541,-150.0,0.00022999,2]
[311390954,1705074658550,-1827548.60830237,0.00023,2]
[311390955,1705074658922,-95390.46218923,0.00023,2]
[311390956,1705074658934,-159071.58372419,0.00023,2]
[311390957,1705074658945,-2853.91612875,0.00023,2]
[311390958,1705074658957,-13005.12856162,0.00023,2]
[311390959,1705074658968,-741.96090822,0.00023,2]
[311390960,1705074658979,-868.95680594,0.00023,2]
[311390961,1705074659047,-529.82133345,0.00023,2]
[311390962,1705074659059,-650.53838168,0.00023,2]
[311390963,1705074659111,-22421.00957323,0.00023,2]
[311390964,1705074659122,-20876.43700282,0.00023,2]
[311390965,1705074659134,-1786.88,0.00023,2]
[311390966,1705074659154,-2226.78,0.00023,2]
[311390967,1705074661345,-974.55505774,0.00023,2]
[311390968,1705074661357,-939.37899748,0.00023,2]
[311390969,1705074661369,-13401.91937777,0.00023,2]
[311390970,1705074661393,-323.91546788,0.00023,2]
[311390971,1705074661404,-22237.10149999,0.00023,2]
[311390972,1705074661917,-2435.38767799,0.00023,2]
[311390973,1705074661929,-899.295,0.00023,2]
[311390974,1705074661940,-1781.47044147,0.00023,2]
[311390975,1705074662344,-162.95360672,0.00022515,2]
[311390976,1705074662355,-500.0,0.00022517,2]
[311390977,1705074662365,-13113.38873872,0.00023,2]
[311390978,1705074662377,-367.0393001,0.00023,2]
[311390979,1705074662389,-291.525,0.00023,2]
[311390980,1705074662401,-7948.79371493,0.00023,2]
[311390981,1705074662412,-362.05679896,0.00023,2]
[311390982,1705074662423,-8909.3424,0.00023,2]
[311390983,1705074662435,-261.81061887,0.00023,2]
[311390984,1705074662457,-320.09528725,0.00023,2]
[311390985,1705074662468,-478.75824,0.00023,2]
[311390986,1705074662480,-428.53549181,0.00023,2]
[311390987,1705074662491,-669.065397,0.00023,2]
[311390988,1705074662526,-10592.25199754,0.00023,2]
[311390989,1705074662696,-289.46683218,0.00023,2]
[311390990,1705074662709,-475.07342207,0.00023,2]